bitfinex-derivatives/quotes_BNBF0:USTF0_20250603
["timestamp","ask_amount","ask_price","bid_price","bid_amount"]
[1748938587064,1.118,664.86,664.5,1.12664224]
[1748938587263,1.118,664.86,664.55,1.12664224]
[1748938587559,1.118,664.86,664.55,1.12664751]
[1748938587960,1.118,664.86,664.54,1.12664751]
[1748938588563,0.41637762,664.85,664.55,1.12664751]
[1748938588765,0.41637834,664.84,664.55,1.12664751]
[1748938588958,0.41637857,664.83,664.55,1.12664751]
[1748938589159,0.41637815,664.82,664.55,1.12664751]
[1748938589563,1.118,664.86,664.55,1.12664751]
[1748938589760,0.41637472,664.85,664.55,1.12664751]
[1748938589965,1.118,664.86,664.55,1.12664751]
[1748938590160,0.41637887,664.85,664.55,1.12664751]
[1748938590364,1.118,664.86,664.55,1.12664751]
[1748938591365,1.118,664.86,664.55,1.12668507]
[1748938591565,0.41640123,664.85,664.55,1.12668507]
[1748938591761,0.41640121,664.84,664.55,1.12668507]
[1748938591963,1.118,664.86,664.58,1.12668507]
[1748938592463,1.118,664.86,664.57,1.12668507]
[1748938592869,0.41640072,664.85,664.57,1.12668507]
[1748938593167,1.118,664.86,664.59,1.12668507]
[1748938593670,0.41641071,664.85,664.59,1.12668507]
[1748938593862,0.41640972,664.84,664.59,1.12668507]
[1748938594065,1.118,664.86,664.6,1.12668507]
[1748938594465,0.41642519,664.85,664.6,1.12668507]
[1748938594669,1.118,664.86,664.6,1.12668507]
[1748938595274,0.41642993,664.85,664.6,1.12674514]
[1748938595472,1.118,664.86,664.6,1.12674514]
[1748938595676,0.4164332,664.85,664.6,1.12674514]
[1748938595972,1.118,664.86,664.61,1.12674514]
[1748938596271,1.118,664.86,664.6,1.12674514]
[1748938596674,0.41642852,664.85,664.6,1.12674514]
[1748938596974,1.118,664.86,664.6,1.12674514]
[1748938597171,1.118,664.86,664.61,1.12674514]
[1748938598072,0.41642897,664.85,664.61,1.12674514]
[1748938598271,1.118,664.86,664.61,1.12674514]
[1748938598876,0.26180965,664.87,664.61,1.12674514]
[1748938599277,0.26180965,664.87,664.6,1.12674514]
[1748938599474,0.41653091,664.86,664.6,1.12674514]
[1748938599678,0.26180965,664.87,664.6,1.12674514]
[1748938600982,0.4165325,664.86,664.6,1.12674514]
[1748938601182,0.26180965,664.87,664.6,1.12674514]
[1748938601981,0.4165332,664.86,664.6,1.12674514]
[1748938602282,0.26180965,664.87,664.61,1.12674514]
[1748938602483,1.261,664.85,664.61,1.12674514]
[1748938602683,1.261,664.85,664.59,1.12674514]
[1748938602882,1.261,664.85,664.45,1.49802925]
[1748938603079,1.261,664.85,664.58,1.1270573]
[1748938603484,1.261,664.85,664.59,1.1270573]
[1748938603780,0.41656345,664.84,664.59,1.1270573]
[1748938603984,1.261,664.85,664.59,1.1270573]
[1748938604282,0.41656551,664.84,664.59,1.1270573]
[1748938604478,1.261,664.85,664.59,1.1270573]
[1748938605282,0.41656015,664.84,664.59,1.1270573]
[1748938605477,1.261,664.85,664.59,1.1270573]
[1748938605879,0.41656185,664.84,664.59,1.1270573]
[1748938606079,1.261,664.85,664.59,1.1270573]
[1748938606284,0.41656215,664.84,664.59,1.1270573]
[1748938606480,1.261,664.85,664.6,1.1270573]
[1748938606685,1.261,664.85,664.45,1.49802925]
[1748938606881,0.41656157,664.84,664.6,1.12733998]
[1748938607077,1.261,664.85,664.6,1.12733998]
[1748938607285,0.41656165,664.84,664.6,1.12733998]
[1748938607483,1.261,664.85,664.6,1.12733998]
[1748938608281,1.261,664.85,664.53,1.12733998]
[1748938608788,0.41655474,664.84,664.53,1.12733998]
[1748938608986,1.261,664.85,664.53,1.12733998]
[1748938609483,0.41655272,664.84,664.54,1.12733998]
[1748938609687,1.261,664.85,664.54,1.12733998]
[1748938610483,1.261,664.85,664.55,1.12733998]
[1748938610681,1.085,664.84,664.55,1.12772663]
[1748938611682,0.41658147,664.83,664.55,1.12772663]
[1748938611881,0.41658147,664.82,664.55,1.12772663]
[1748938612082,0.41658105,664.81,664.56,1.12772663]
[1748938612386,0.41658031,664.8,664.56,1.12772663]
[1748938612587,1.085,664.84,664.56,1.12772663]
[1748938612786,0.41658031,664.83,664.56,1.12772663]
[1748938612984,0.41658031,664.83,664.37,1.49802925]
[1748938612985,1.085,664.84,664.55,1.12772663]
[1748938613188,0.41658072,664.83,664.55,1.12772663]
[1748938613390,0.41657864,664.82,664.53,1.12772663]
[1748938613582,1.085,664.84,664.52,1.12772663]
[1748938613782,0.41657941,664.83,664.52,1.12772663]
[1748938613982,0.41657913,664.82,664.52,1.12772663]
[1748938614188,1.085,664.84,664.52,1.12772663]
[1748938614388,1.085,664.84,664.52,1.12784114]
[1748938615183,1.085,664.84,664.51,1.12784114]
[1748938616090,0.41657953,664.83,664.5,1.12784114]
[1748938616285,1.085,664.84,664.5,1.12784114]
[1748938616887,0.41657759,664.83,664.5,1.12784114]
[1748938617085,0.41657867,664.82,664.5,1.12784114]
[1748938617386,1.085,664.84,664.5,1.12784114]
[1748938617590,0.41657811,664.83,664.5,1.12784114]
[1748938617886,1.085,664.84,664.5,1.12784114]
[1748938618294,1.085,664.84,664.52,1.12784493]
[1748938618493,0.837,664.83,664.52,1.12784493]
[1748938618691,0.837,664.83,664.54,1.12784493]
[1748938620393,0.41657821,664.82,664.54,1.12784493]
[1748938620588,0.41657722,664.81,664.53,1.12784493]
[1748938620789,0.837,664.83,664.53,1.12784493]
[1748938620992,0.837,664.83,664.52,1.12784493]
[1748938621196,0.837,664.83,664.29,1.12784493]
[1748938621388,0.837,664.83,664.27,1.12784493]
[1748938621389,0.4164464,664.82,664.27,1.12784493]
[1748938621588,0.4164464,664.81,664.21,1.12784493]
[1748938621791,0.41643884,664.8,664.21,1.12784493]
[1748938621989,0.837,664.83,664.2,1.12784493]
[1748938622197,0.837,664.83,664.18,1.12784493]
[1748938622595,0.41643221,664.82,664.17,1.12784493]
[1748938622794,0.837,664.83,664.17,1.12784493]
[1748938622995,0.837,664.83,664.18,1.12784493]
[1748938623192,0.837,664.83,664.16,1.12784493]
[1748938623396,0.837,664.83,664.15,1.12784493]
[1748938623597,0.41684072,664.82,664.09,1.12784493]
[1748938623896,0.837,664.83,664.1,1.12784493]
[1748938624394,0.837,664.83,663.89,1.49802925]
[1748938624395,1.143,664.82,663.89,1.49802925]
[1748938624602,1.11945933,664.8,664.05,1.12477189]
[1748938624798,1.11945933,664.8,663.6,0.26193872]
[1748938624799,1.11945933,664.75,664.07,1.12477189]
[1748938624999,1.11945933,664.76,664.08,1.12477189]
[1748938625300,1.11945933,664.76,663.93,1.49802925]
[1748938625301,1.143,664.82,664.0,1.12477189]
[1748938625600,2.26245933,664.82,664.0,1.12477189]
[1748938626402,0.41683862,664.81,663.97,1.12477189]
[1748938626700,0.41684293,664.8,663.96,1.12477189]
[1748938627000,1.11945933,664.81,663.97,1.12477189]
[1748938627402,1.143,664.82,663.95,1.12477189]
[1748938627701,0.41683703,664.81,663.94,1.12477189]
[1748938627904,2.26245933,664.82,663.94,1.12477189]
[1748938628103,1.143,664.82,663.75,1.49802925]
[1748938628299,1.143,664.82,663.89,1.12287561]
[1748938628504,0.41760119,664.81,663.87,1.12287561]
[1748938628805,1.143,664.82,663.87,1.12287561]
[1748938629103,0.4176037,664.81,663.87,1.12287561]
[1748938629304,1.143,664.82,663.88,1.12287561]
[1748938629905,0.41760395,664.81,663.92,1.12287561]
[1748938630200,1.11724606,664.77,663.99,1.12287561]
[1748938630505,0.41759794,664.76,663.97,1.12287561]
[1748938630703,0.41759794,664.75,663.97,1.12287561]
[1748938631003,0.41759789,664.74,663.98,1.12287561]
[1748938631304,1.54,664.81,663.96,1.12287561]
[1748938631305,1.11724606,664.79,663.96,1.12287561]
[1748938631501,0.4175979,664.78,663.96,1.12287561]
[1748938631703,0.41759891,664.77,663.96,1.12287561]
[1748938631999,1.1153338,664.79,663.96,1.12095149]
[1748938632204,1.05,664.76,663.95,1.12095149]
[1748938632506,1.05,664.76,663.94,1.12095149]
[1748938633007,1.05,664.76,663.51,0.26197224]
[1748938633206,0.41760256,664.75,663.52,0.30142271]
[1748938633504,1.05,664.76,663.52,0.30142271]
[1748938633802,1.05,664.76,663.93,1.12021773]
[1748938633803,0.41760191,664.75,663.93,1.12021773]
[1748938634004,0.41760354,664.74,663.93,1.12021773]
[1748938634308,1.05,664.76,663.9,1.12021773]
[1748938634806,0.41760309,664.75,663.9,1.12021773]
[1748938635001,0.4176025,664.74,663.9,1.12021773]
[1748938635205,1.05,664.76,663.9,1.12021773]
[1748938635402,1.05,664.76,663.89,1.12021773]
[1748938635807,1.05,664.76,663.91,1.12021773]
[1748938636109,1.05,664.76,663.91,1.11963931]
[1748938636304,1.05,664.76,663.9,1.11963931]
[1748938636703,0.4176015,664.75,663.9,1.11963931]
[1748938636907,1.05,664.76,663.9,1.11963931]
[1748938637308,1.05,664.76,663.88,1.11963931]
[1748938637309,0.41760287,664.75,663.88,1.11963931]
[1748938637509,0.908,664.75,663.88,1.11963931]
[1748938637711,0.908,664.75,663.85,1.11963931]
[1748938638011,0.41760274,664.74,663.85,1.11963931]
[1748938638206,0.908,664.75,663.84,1.11963931]
[1748938638407,0.41760274,664.74,663.84,1.11963931]
[1748938638612,0.908,664.75,663.84,1.11963931]
[1748938639011,1.048,664.74,663.84,1.11963931]
[1748938639211,1.048,664.74,663.86,1.11963931]
[1748938639412,1.048,664.74,663.85,1.11963931]
[1748938639815,0.41760328,664.73,663.7,1.49362365]
[1748938640113,0.41760144,664.72,663.85,1.11876259]
[1748938640313,1.048,664.74,663.83,1.11876259]
[1748938640513,1.048,664.74,663.82,1.11876259]
[1748938640909,0.83519628,664.73,663.82,1.11876259]
[1748938641213,1.60959715,664.73,663.84,1.11876259]
[1748938641413,1.60959715,664.73,663.69,1.49362365]
[1748938641414,1.60959715,664.73,663.83,1.11876259]
[1748938642009,1.60959715,664.73,663.86,1.11844167]
[1748938642214,1.60959715,664.73,663.87,1.11844167]
[1748938642615,0.41760123,664.72,663.87,1.11844167]
[1748938642815,1.60959715,664.73,663.86,1.11844167]
[1748938643010,0.41678121,664.72,663.86,1.11844167]
[1748938643213,1.60959715,664.73,663.81,1.11844167]
[1748938643413,0.41678142,664.72,663.8,1.11844167]
[1748938643611,0.41678018,664.71,663.8,1.11844167]
[1748938643811,1.60959715,664.73,663.8,1.11818645]
[1748938644315,0.41677683,664.72,663.8,1.11818645]
[1748938644512,1.60959715,664.73,663.8,1.11818645]
[1748938644910,1.60959715,664.73,663.85,1.11818645]
[1748938645416,0.41677089,664.72,663.85,1.11818645]
[1748938645617,1.60959715,664.73,663.85,1.11818645]
[1748938645813,0.41677126,664.72,663.84,1.11818645]
[1748938646015,0.41677126,664.71,663.85,1.11818645]
[1748938646213,1.60959715,664.73,663.85,1.11818645]
[1748938646618,1.60959715,664.73,663.79,1.11818645]
[1748938646912,1.60959715,664.73,663.78,1.11818645]
[1748938647117,0.4167799,664.72,663.78,1.11818645]
[1748938647318,1.60959715,664.73,663.78,1.11818645]
[1748938647516,0.41678021,664.72,663.78,1.11818645]
[1748938647716,0.41678273,664.71,663.81,1.11784829]
[1748938647917,1.60959715,664.73,663.88,1.11784829]
[1748938648121,0.41679953,664.72,663.88,1.11784829]
[1748938648314,0.41681254,664.71,663.86,1.11784829]
[1748938648514,1.60959715,664.73,663.86,1.11784829]
[1748938648820,1.60959715,664.73,663.72,1.49125556]
[1748938648821,0.41679625,664.72,663.88,1.11784829]
[1748938649017,1.60959715,664.73,663.89,1.11784829]
[1748938649223,0.41680151,664.72,663.88,1.11784829]
[1748938649418,0.41681535,664.71,663.88,1.11784829]
[1748938649617,1.016,664.71,663.88,1.11784829]
[1748938649820,0.41681345,664.7,663.89,1.11784829]
[1748938650021,1.016,664.71,663.88,1.11784829]
[1748938650319,0.41685141,664.7,663.85,1.11784829]
[1748938650522,1.016,664.71,663.85,1.11784829]
[1748938650919,1.016,664.71,663.86,1.11784829]
[1748938651118,1.016,664.71,663.9,1.11784829]
[1748938651618,0.41688427,664.7,663.61,2.24043547]
[1748938651823,1.016,664.71,663.92,1.11779078]
[1748938652019,0.4168894,664.7,663.91,1.11779078]
[1748938652224,0.41688823,664.69,663.91,1.11779078]
[1748938652423,1.016,664.71,663.92,1.11779078]
[1748938652822,1.265,664.7,663.91,1.11779078]
[1748938653022,0.41688614,664.69,663.95,1.11785623]
[1748938653223,1.31888634,664.68,663.96,1.11785623]
[1748938653425,0.902,664.68,663.96,1.11785623]
[1748938653826,0.902,664.68,663.95,1.11785623]
[1748938654421,0.4168854,664.67,663.95,1.11785623]
[1748938654625,0.902,664.68,663.95,1.11785623]
[1748938655222,0.902,664.68,663.96,1.11785623]
[1748938655627,0.902,664.68,663.96,1.11814535]
[1748938655823,0.41688031,664.67,663.95,1.11814535]
[1748938656022,0.902,664.68,663.95,1.11814535]
[1748938656221,0.973,664.66,663.96,1.11814535]
[1748938656422,0.41626558,664.65,663.96,1.11814535]
[1748938656624,0.973,664.66,663.96,1.11814535]
[1748938656830,0.41626558,664.64,663.96,1.11814535]
[1748938657127,0.973,664.66,663.96,1.11814535]
[1748938657822,0.41626105,664.65,663.96,1.11814535]
[1748938658027,0.41626331,664.64,663.97,1.11814535]
[1748938658329,0.973,664.66,663.98,1.11814535]
[1748938658523,0.41626065,664.63,663.98,1.11814535]
[1748938658727,0.973,664.66,663.98,1.11814535]
[1748938658928,0.41626354,664.65,663.98,1.11814535]
[1748938659227,0.973,664.66,663.98,1.11814535]
[1748938659528,0.973,664.66,663.98,1.11865432]
[1748938660421,0.41626126,664.65,663.98,1.11865432]
[1748938660627,0.973,664.66,663.98,1.11865432]
[1748938660820,0.41626126,664.65,663.98,1.11881119]
[1748938661020,0.41626126,664.64,663.98,1.11881119]
[1748938661223,0.41626285,664.63,663.98,1.11881119]
[1748938661429,0.973,664.66,663.99,1.11881119]
[1748938662825,0.973,664.66,663.93,1.11881119]
[1748938663424,0.41620581,664.65,663.94,1.1193495]
[1748938663728,0.973,664.66,663.94,1.1193495]
[1748938663927,0.973,664.66,663.93,1.1193495]
[1748938664328,0.973,664.66,663.94,1.1193495]
[1748938664523,0.41620129,664.65,663.94,1.1193495]
[1748938664724,0.41618921,664.64,663.94,1.1193495]
[1748938664929,0.973,664.66,663.94,1.1193495]
[1748938665125,0.973,664.66,663.95,1.1193495]
[1748938665329,0.973,664.66,663.96,1.1193495]
[1748938665830,0.816,664.65,663.96,1.1193495]
[1748938666430,0.816,664.65,663.97,1.1193495]
[1748938666632,0.816,664.65,663.96,1.1193495]
[1748938667231,0.816,664.65,663.62,0.30137729]
[1748938667232,0.816,664.65,663.95,1.12003955]
[1748938667528,0.816,664.65,663.96,1.12003955]
[1748938667935,0.41611704,664.64,663.96,1.12003955]
[1748938668231,0.816,664.65,663.96,1.12003955]
[1748938668437,0.816,664.65,663.97,1.12003955]
[1748938669230,0.41610704,664.64,663.98,1.12003955]
[1748938669436,0.816,664.65,663.98,1.12003955]
[1748938669935,1.175,664.64,663.98,1.12003955]
[1748938670331,1.175,664.64,663.99,1.12003955]
[1748938670534,0.41610529,664.63,663.99,1.12003955]
[1748938670832,1.175,664.64,663.97,1.12003955]
[1748938671036,0.41610993,664.63,663.97,1.12003955]
[1748938671336,1.175,664.64,663.62,0.30137729]
[1748938671337,1.175,664.64,663.98,1.12003955]
[1748938671531,1.175,664.64,663.99,1.12003955]
[1748938671839,1.175,664.64,664.03,1.12003955]
[1748938672034,0.4161157,664.63,664.02,1.12003955]
[1748938672232,0.41610775,664.62,664.04,1.12003955]
[1748938672430,0.4161157,664.63,664.04,1.12003955]
[1748938672638,0.4161157,664.63,664.02,1.12003955]
[1748938672847,0.41611317,664.62,664.02,1.12003955]
[1748938673033,0.41611317,664.62,663.62,0.30137729]
[1748938673034,0.41611314,664.61,664.08,1.12003955]
[1748938673233,1.07,664.62,664.09,1.12003955]
[1748938673539,1.07,664.62,664.1,1.12003955]
[1748938674338,1.07,664.62,664.09,1.12003955]
[1748938674539,1.07,664.62,663.98,1.49038771]
[1748938674737,0.41606137,664.61,663.98,1.49038771]
[1748938675036,1.07,664.62,664.1,1.12274565]
[1748938675238,1.07,664.62,664.12,1.12274565]
[1748938675432,0.41148105,664.61,664.12,1.12274565]
[1748938675630,1.07,664.62,664.12,1.12274565]
[1748938676037,1.07,664.62,664.09,1.12274565]
[1748938676237,1.07,664.62,664.1,1.12274565]
[1748938676537,1.07,664.62,664.11,1.12274565]
[1748938676838,1.07,664.62,664.1,1.12274565]
[1748938677136,1.07,664.62,664.11,1.12274565]
[1748938677337,1.07,664.62,664.14,1.12274565]
[1748938678038,0.4161195,664.61,664.14,1.12274565]
[1748938678233,1.07,664.62,664.14,1.12274565]
[1748938678437,1.07,664.62,664.16,1.12274565]
[1748938678740,0.41611797,664.61,664.16,1.12523308]
[1748938679038,1.07,664.62,664.16,1.12523308]
[1748938679233,1.07,664.62,664.18,1.12523308]
[1748938679432,1.07,664.62,664.17,1.12523308]
[1748938680538,1.07,664.62,664.18,1.12523308]
[1748938680736,1.07,664.62,664.19,1.12523308]
[1748938681235,1.07,664.62,664.04,1.49038771]
[1748938681430,1.07,664.62,664.2,1.12627397]
[1748938681836,1.07,664.62,664.14,1.12627397]
[1748938682034,0.41610832,664.61,664.14,1.12627397]
[1748938682236,1.07,664.62,664.14,1.12627397]
[1748938683438,0.41605479,664.61,664.14,1.12627397]
[1748938683634,1.07,664.62,664.14,1.12627397]
[1748938683835,0.41605487,664.6,664.14,1.12627397]
[1748938684034,0.41605546,664.59,664.14,1.12627397]
[1748938684234,0.41605487,664.6,664.14,1.12627397]
[1748938684540,0.41605344,664.59,664.14,1.12627397]
[1748938684738,0.41605213,664.58,663.94,1.49038771]
[1748938684939,0.41605487,664.6,664.14,1.12634645]
[1748938685334,0.41605487,664.6,664.13,1.12633769]
[1748938685541,0.41605463,664.59,664.13,1.12633769]
[1748938685737,0.41605487,664.6,664.13,1.12633769]
[1748938686035,0.41605487,664.6,664.12,1.12633796]
[1748938686239,0.41605487,664.6,663.92,1.49038771]
[1748938686240,0.41604802,664.59,664.07,1.12633796]
[1748938686440,0.41604802,664.59,664.01,1.12633796]
[1748938686636,0.83202778,664.58,664.01,1.12633796]
[1748938686839,0.41601493,664.58,664.02,1.12633796]
[1748938687042,1.12076584,664.56,663.84,1.12633796]
[1748938687435,1.12076584,664.56,663.83,1.12633796]
[1748938687742,1.273,664.55,663.83,1.12633796]
[1748938687941,2.157,664.55,663.84,1.12633796]
[1748938688348,2.157,664.55,663.86,1.12639465]
[1748938688642,2.157,664.55,663.85,1.12607167]
[1748938689038,0.41580383,664.54,663.85,1.12607167]
[1748938689239,2.157,664.55,663.85,1.12607167]
[1748938689441,1.005,664.53,663.84,1.12607167]
[1748938689637,0.41579998,664.52,663.84,1.12607167]
[1748938689835,0.41580152,664.51,663.84,1.12607167]
[1748938690037,1.005,664.53,663.84,1.12607167]
[1748938690542,1.005,664.53,663.83,1.12607167]
[1748938690938,1.005,664.53,663.84,1.12607167]
[1748938691643,1.40236748,664.52,663.84,1.12607167]
[1748938691844,0.986,664.52,663.84,1.12607167]
[1748938692338,0.41635525,664.51,663.84,1.12607167]
[1748938692541,0.41635583,664.5,663.83,1.12527149]
[1748938692740,0.986,664.52,663.83,1.12527149]
[1748938693544,0.41637065,664.51,663.83,1.12527149]
[1748938693745,0.986,664.52,663.83,1.12527149]
[1748938693941,0.986,664.52,663.84,1.12527149]
[1748938694346,0.41634896,664.51,663.84,1.12527149]
[1748938694541,0.41634896,664.5,663.84,1.12527149]
[1748938694744,0.41634878,664.49,663.84,1.12527149]
[1748938694945,0.986,664.52,663.84,1.12527149]
[1748938695142,0.41634889,664.51,663.84,1.12527149]
[1748938695343,0.41634628,664.5,663.84,1.12527149]
[1748938695544,0.41634628,664.5,663.62,0.30137729]
[1748938695545,0.986,664.52,663.83,1.12527149]
[1748938695745,0.986,664.52,663.86,1.12527149]
[1748938696146,0.986,664.52,663.72,1.49038771]
[1748938696342,0.986,664.52,663.87,1.12447744]
[1748938696540,0.41634917,664.51,663.86,1.12447744]
[1748938696746,0.986,664.52,663.86,1.12447744]
[1748938697945,0.41629594,664.51,663.86,1.12447744]
[1748938698248,0.986,664.52,663.86,1.12447744]
[1748938698644,0.41629755,664.51,663.86,1.12447744]
[1748938698849,0.986,664.52,663.86,1.12447744]
[1748938699149,0.4162849,664.51,663.85,1.12447744]
[1748938699348,0.4162849,664.51,663.62,0.30137729]
[1748938699349,0.41628662,664.5,663.84,1.12447744]
[1748938699549,0.986,664.52,663.83,1.12447744]
[1748938699850,0.41628915,664.51,663.83,1.12447744]
[1748938700044,0.986,664.52,663.83,1.12396291]
[1748938700248,0.41628879,664.51,663.83,1.12396291]
[1748938700548,0.986,664.52,663.83,1.12396291]
[1748938701349,0.986,664.52,663.82,1.12396291]
[1748938701552,0.41628056,664.51,663.82,1.12396291]
[1748938701851,0.41628101,664.5,663.82,1.12396291]
[1748938702048,0.986,664.52,663.82,1.12396291]
[1748938703051,0.41628365,664.51,663.82,1.12396291]
[1748938703246,0.986,664.52,663.82,1.12396291]
[1748938703445,0.986,664.52,663.66,1.49038771]
[1748938703446,0.986,664.52,663.81,1.12396291]
[1748938703649,0.986,664.52,663.62,0.30137729]
[1748938703650,0.986,664.52,663.78,1.12396291]
[1748938703952,1.122,664.51,663.79,1.1234833]
[1748938704144,1.122,664.51,663.78,1.1234833]
[1748938704344,1.122,664.51,663.79,1.1234833]
[1748938704844,0.41628775,664.5,663.79,1.1234833]
[1748938705050,1.122,664.51,663.79,1.1234833]
[1748938705945,0.41623371,664.5,663.79,1.1234833]
[1748938706151,1.122,664.51,663.79,1.1234833]
[1748938706351,1.122,664.51,663.77,1.1234833]
[1748938707651,0.41623265,664.5,663.77,1.1234833]
[1748938707952,1.122,664.51,663.77,1.1234833]
[1748938708454,0.416227,664.5,663.77,1.1234833]
[1748938708652,1.122,664.51,663.77,1.1234833]
[1748938709156,0.4162257,664.5,663.77,1.1234833]
[1748938709453,1.122,664.51,663.77,1.1234833]
[1748938709654,0.41622494,664.5,663.77,1.1234833]
[1748938709949,0.41622219,664.49,663.77,1.1234833]
[1748938710153,0.41622427,664.48,663.77,1.1229749]
[1748938710353,0.41622427,664.47,663.77,1.1229749]
[1748938710654,0.41622394,664.46,663.77,1.1229749]
[1748938710847,1.122,664.51,663.74,1.1229749]
[1748938711452,0.41622219,664.5,663.62,0.30137729]
[1748938711649,1.122,664.51,663.74,1.12288744]
[1748938711951,0.41622216,664.5,663.74,1.12288744]
[1748938712152,0.41621756,664.49,663.74,1.12288744]
[1748938712453,0.41622216,664.5,663.74,1.12288744]
[1748938713449,0.41622216,664.5,663.75,1.12288744]
[1748938715249,0.41622216,664.5,663.62,0.30137729]
[1748938715250,0.41620915,664.49,663.62,0.30137729]
[1748938717147,0.41622216,664.5,663.77,1.12281021]
[1748938717349,0.41280222,664.49,663.77,1.12281021]
[1748938717654,0.41622216,664.5,663.77,1.12281021]
[1748938717952,0.4128018,664.49,663.77,1.12281021]
[1748938718258,0.41622216,664.5,663.77,1.12281021]
[1748938718861,0.41280082,664.49,663.77,1.12281021]
[1748938719162,0.41622216,664.5,663.78,1.12281021]
[1748938719357,0.41279802,664.49,663.78,1.12281543]
[1748938719557,0.41622216,664.5,663.78,1.12281543]
[1748938719962,0.41280071,664.49,663.78,1.12281543]
[1748938720158,0.4128031,664.48,663.78,1.12281543]
[1748938720363,0.41622216,664.5,663.78,1.12281543]
[1748938720864,0.41622216,664.5,663.82,1.12281543]
[1748938721056,0.41280315,664.49,663.82,1.12281543]
[1748938721260,0.41622216,664.5,663.82,1.12281543]
[1748938721762,0.41280521,664.49,663.82,1.12281543]
[1748938721962,0.41622216,664.5,663.82,1.12281543]
[1748938722363,0.41280529,664.49,663.82,1.12281543]
[1748938722562,0.41622216,664.5,663.82,1.12281543]
[1748938723162,0.41622216,664.5,663.88,1.12281049]
[1748938723359,0.41622216,664.5,663.91,1.12281049]
[1748938724060,0.41622216,664.5,663.94,1.12281049]
[1748938724361,0.4128566,664.49,663.94,1.12281049]
[1748938724566,0.41622216,664.5,663.94,1.12281049]
[1748938724965,0.41285803,664.49,663.94,1.12281049]
[1748938725166,0.41622216,664.5,663.94,1.12281049]
[1748938726663,0.41290878,664.49,663.94,1.12281049]
[1748938726865,0.41290878,664.49,663.94,1.12302808]
[1748938727464,0.41290878,664.49,663.95,1.12302808]
[1748938728668,0.41290878,664.49,663.96,1.12302808]
[1748938729264,0.41282137,664.48,663.96,1.12302808]
[1748938729568,0.41282129,664.47,663.96,1.12302808]
[1748938729769,0.41290878,664.49,663.96,1.12302808]
[1748938729970,0.41281997,664.48,663.96,1.12302808]
[1748938730171,0.41290878,664.49,663.96,1.12302808]
[1748938730372,0.41281904,664.48,663.96,1.12302808]
[1748938730572,0.41290878,664.49,663.96,1.12302808]
[1748938730869,0.41290878,664.49,663.97,1.12338307]
[1748938732067,1.323,664.48,663.97,1.12338307]
[1748938732868,1.323,664.48,663.98,1.12338307]
[1748938733065,1.323,664.48,663.62,0.30137729]
[1748938733066,1.323,664.48,663.99,1.12338307]
[1748938733271,0.41281834,664.47,663.99,1.12338307]
[1748938733570,1.323,664.48,664.0,1.12373587]
[1748938734271,1.323,664.48,663.97,1.12373587]
[1748938734667,0.41283552,664.47,663.97,1.12386367]
[1748938734871,0.41283552,664.47,663.98,1.12386367]
[1748938735072,0.41283393,664.46,663.98,1.12386367]
[1748938735273,1.323,664.48,663.98,1.12386367]
[1748938735472,1.323,664.48,663.98,1.12396128]
[1748938735672,1.323,664.48,663.99,1.12396128]
[1748938736367,1.323,664.48,664.0,1.12396128]
[1748938736772,0.41619019,664.47,664.0,1.12396128]
[1748938736969,1.323,664.48,664.0,1.12396128]
[1748938737170,1.323,664.48,664.01,1.12396128]
[1748938738372,1.323,664.48,664.02,1.12396128]
[1748938738570,1.323,664.48,664.02,1.1244433]
[1748938738770,1.323,664.48,663.96,1.1244433]
[1748938738975,1.323,664.48,663.97,1.1244433]
[1748938739670,1.323,664.48,663.98,1.1244433]
[1748938739873,0.41625243,664.47,663.98,1.1244433]
[1748938740073,1.323,664.48,663.99,1.1244433]
[1748938740272,1.323,664.48,664.0,1.1244433]
[1748938740670,0.41626063,664.47,664.0,1.1244433]
[1748938740875,1.323,664.48,664.0,1.1244433]
[1748938741278,0.41624395,664.47,664.0,1.1244433]
[1748938741475,0.41624764,664.46,664.0,1.1244433]
[1748938741674,1.323,664.48,664.0,1.1244433]
[1748938742174,1.323,664.48,664.04,1.1244433]
[1748938742579,0.4162557,664.47,664.04,1.1244433]
[1748938742777,0.41625734,664.46,664.04,1.1244433]
[1748938742980,1.323,664.48,664.04,1.1244433]
[1748938743173,1.323,664.48,664.05,1.1244433]
[1748938743382,1.323,664.48,664.04,1.1244433]
[1748938743679,1.323,664.48,664.05,1.1244433]
[1748938744081,1.323,664.48,663.79,1.49729987]